Workbook

Sheet PLAN
A1: 2023 PRODUCTION COMMITMENT
A3: SE: | B3: Melissa Westbrook
A5: Agency:
G6: 90 DAY REQUIREMENTS
A7: Year: | B7: =YEAR(TODAY()) -> 2023 | C7: State: | D7: KS
G8: IntelliDrive | J8: Target | K8: Result | L8: Ppt Gap
C9: # Months Remaining In Year | D9: 12 | G9: Quote % | J9: 0.95 | L9: =(+J9-K9)*100 -> 
G10: Take Up Rate or Issued % | J10: 0.5 | L10: =(+J10-K10)*100 -> 
C11: *model uses this NB retention rate | D11: 0.91 | G11: Digital | J11: Target | K11: Result | L11: Ppt Gap
G12: email Capture at NB | J12: 0.95 | L12: =(+J12-K12)*100 -> 95
G13: Digital Quote Proposal | J13: 0.25 | L13: =(+J13-K13)*100 -> 25
A17: Monthly Commitment | E17: 90 Day Target | H17: 90 Day Result
A18: LOB | B18: Quotes | C18: Close Rate | D18: BNB | E18: Quote | F18: BNB | H18: LOB | I18: Quote | J18: Quote Gap | K18: BNB | L18: BNB Gap
A19: AUTO | B19: 15 | C19: 0.12 | D19: =+B19*C19 -> 1.8 | E19: =+B19*3 -> 45 | F19: =+D19*3 -> 5.4 | H19: AUTO | J19: =(+E19-I19)*1 -> 45 | L19: =(+F19-K19)*1 -> 5.4
A20: HOME | B20: 15 | C20: 0.17 | D20: =+B20*C20 -> 2.55 | E20: =+B20*3 -> 45 | F20: =+D20*3 -> 7.65 | H20: HOME | J20: =(+E20-I20)*1 -> 45 | L20: =(+F20-K20)*1 -> 7.65
A21: SPECIALTY | B21: 1 | C21: 0.85 | D21: 0.85 | E21: 3 | F21: 2.55 | H21: SPECIALTY | J21: =(+E21-I21)*1 -> 3 | L21: =(+F21-K21)*1 -> 2.55
A22: Total | B22: =SUM(B19:B21) -> 31 | C22: =SUMPRODUCT(B19:B21,C19:C21)/B22 -> 0.1677419355 | D22: =SUM(D19:D21) -> 5.2 | E22: =SUM(E19:E21) -> 93 | F22: =SUM(F19:F21) -> 15.6 | H22: Total | I22: =SUM(I19:I21) -> 0 | J22: =SUM(J19:J21) -> 93 | K22: =SUM(K19:K21) -> 0 | L22: =SUM(L19:L21) -> 15.6
A25: Yearly View
A26: Line of Business | B26: Avg Monthly Quotes | C26: Total Quotes | D26: Est Close Rate | E26: BNB | F26: Starting PIF | G26: Renewal Retention | H26: Renewed PIF | I26: Total PIF | J26: Est. PIF Growth | K26: Avg WP per policy | L26: Est Written Premium | N26: Metric | O26: LOB | P26: Yr 1 | Q26: Yr 2 | R26: Yr 3 | S26: Yr 4 | T26: Yr 5 | U26: Yr 6
A27: AUTO | B27: =B19 -> 15 | C27: =B27*$D$9 -> 180 | D27: 0.13 | E27: =C27*D27 -> 23.4 | F27: 0 | G27: 0.85 | H27: =F27*G27 -> 0 | I27: =(E27*$D$11)+H27 -> 21.294 | J27: =IF(ISERROR((I27-F27)/F27),0,((I27-F27)/F27)) -> 0 | K27: =IFERROR(VLOOKUP($A27,List!$D$13:$I$13,VLOOKUP(PLAN!$D$7,List!$A$5:$B$9,2,FALSE),FALSE),"Select State") -> 1839.258397 | L27: =K27*I27 -> 39165.16832 | N27: End PIF | O27: auto | P27: =I27 -> 21.294 | Q27: =((P$27*$G$27)+($B$27*12*$D$27*$D$11)) -> 39.3939 | R27: =((Q$27*$G$27)+($B$27*12*$D$27*$D$11)) -> 54.778815 | S27: =((R$27*$G$27)+($B$27*12*$D$27*$D$11)) -> 67.85599275 | T27: =((S$27*$G$27)+($B$27*12*$D$27*$D$11)) -> 78.97159384 | U27: =((T$27*$G$27)+($B$27*12*$D$27*$D$11)) -> 88.41985476
A28: HOME | B28: =B20 -> 15 | C28: =B28*$D$9 -> 180 | D28: 0.18 | E28: =C28*D28 -> 32.4 | F28: 0 | G28: 0.85 | H28: =F28*G28 -> 0 | I28: =(E28*$D$11)+H28 -> 29.484 | J28: =IF(ISERROR((I28-F28)/F28),0,((I28-F28)/F28)) -> 0 | K28: =IFERROR(VLOOKUP($A28,List!$D$14:$I$14,VLOOKUP(PLAN!$D$7,List!$A$5:$B$9,2,FALSE),FALSE),"Select State") -> 1536.279041 | L28: =K28*I28 -> 45295.65123 | N28: End PIF | O28: home | Q28: =((P$28*$G$28)+($B$28*12*$D$28*$D$11)) -> 29.484 | R28: =((Q$28*$G$28)+($B$28*12*$D$28*$D$11)) -> 54.5454 | S28: =((R$28*$G$28)+($B$28*12*$D$28*$D$11)) -> 75.84759 | T28: =((S$28*$G$28)+($B$28*12*$D$28*$D$11)) -> 93.9544515 | U28: =((T$28*$G$28)+($B$28*12*$D$28*$D$11)) -> 109.3452838
A29: SPECIALTY | B29: =B21 -> 1 | C29: =B29*$D$9 -> 12 | D29: 0.85 | E29: =C29*D29 -> 10.2 | F29: 0 | G29: 0.85 | H29: =F29*G29 -> 0 | I29: =(E29*$D$11)+H29 -> 9.282 | J29: 0 | K29: =IFERROR(VLOOKUP($A29,List!$D$15:$I$15,VLOOKUP(PLAN!$D$7,List!$A$5:$B$9,2,FALSE),FALSE),"Select State") -> 282.7476775 | L29: =K29*I29 -> 2624.463943 | N29: End PIF | O29: other | P29: =I29 -> 9.282 | Q29: =((P29*$G$29)+($B$29*12*$D$29*$D$11)) -> 17.1717 | R29: =((Q29*$G$29)+($B$29*12*$D$29*$D$11)) -> 23.877945 | S29: =((R29*$G$29)+($B$29*12*$D$29*$D$11)) -> 29.57825325 | T29: =((S29*$G$29)+($B$29*12*$D$29*$D$11)) -> 34.42351526 | U29: =((T29*$G$29)+($B$29*12*$D$29*$D$11)) -> 38.54198797
A30: TOTAL | B30: =B27+B28+B29 -> 31 | C30: =C27+C28+C29 -> 372 | D30: =IF(C30=0,0,E30/C30) -> 0.1774193548 | E30: =E27+E28+E29 -> 66 | F30: =F27+F28+F29 -> 0 | G30: =IF(F30=0,0,H30/F30) -> 0 | H30: =H27+H28+H29 -> 0 | I30: =I27+I28+I29 -> 60.06 | J30: 0 | K30: =IF(I30=0,0,L30/I30) -> 1449.97142 | L30: =L27+L28+L29 -> 87085.28349 | N30: Ave WP | O30: auto | P30: =K27 -> 1839.258397 | Q30: =P30*1.035 -> 1903.632441 | R30: 1970.259577 | S30: 2039.218662 | T30: 2110.591315 | U30: 2184.462011
N31: Ave WP | O31: home | P31: =K28 -> 1536.279041 | Q31: 1590.048807 | R31: 1645.700515 | S31: 1703.300033 | T31: 1762.915534 | U31: 1824.617578
N32: Ave WP | O32: other | P32: =K29 -> 282.7476775 | Q32: 292.6438462 | R32: 302.8863808 | S32: 313.4874042 | T32: 324.4594633 | U32: 335.8155445
D33: Yr 1 WP | E33: Yr 2 WP | F33: Yr 3 WP | G33: Yr 4 WP | H33: Yr 5 WP | I33: Yr 6 WP | N33: Ttl WP | O33: auto | P33: =P27*P30 -> 39165.16832 | Q33: 74991.50603 | R33: 107928.4849 | S33: 138373.2067 | T33: 166676.7601 | U33: 193149.8138
D34: =P36 -> 41789.63226 | E34: 126897.6974 | F34: 204926.1821 | G34: 276836.8191 | H34: 343479.5575 | I34: 405606.1393 | N34: Ttl WP | O34: home | P34: 0 | Q34: 46880.99903 | R34: 89765.39288 | S34: 129191.2026 | T34: 165633.7621 | U34: 199513.3269
A35: *model assumes a 3.5% annual written premium inflation and that quotes, close rates and retention stay constant. | N35: Ttl WP | O35: other | P35: 2624.463943 | Q35: 5025.192334 | R35: 7232.304343 | S35: 9272.409831 | T35: 11169.03529 | U35: 12942.99868
O36: total WP | P36: =SUM(P33:P35) -> 41789.63226 | Q36: 126897.6974 | R36: 204926.1821 | S36: 276836.8191 | T36: 343479.5575 | U36: 405606.1393
A37: Why does the agent want the Travelers Personal Lines contract?
B42: Agent Signature:
A46: LONG TERM TARGETS FOR SUCCESS
A47: QUOTING BEHAVIOR EXPECTATIONS | F47: DIGITAL AUTO DISCOUNT | J47: Umbrella | K47: Target | L47: Result
D48: Target % | E48: Result | F48: Digital | H48: Target | I48: Result | J48: Take Up Rate | K48: 0.4
A49: Home:Auto Quote Ratio | D49: 1:1 | F49: eDelivery (paperless) | H49: 0.75
A50: EFT and Paid-In-Full (combined) | D50: 0.85 | F50: eBill | H50: 0.5
A51: Limits 100/300/100 or > | D51: 0.85 | F51: MyT enrollment | H51: 0.6
A52: Bridge Rate | D52: 0.8
A53: Quote to Effective >15 Days | D53: 0.75

Sheet List (hidden)
A5: AR | B5: 2
A6: KS | B6: 3
A7: MO | B7: 4
A8: OK | B8: 5
A9: TX | B9: 6
E12: AR | F12: KS | G12: MO | H12: OK | I12: TX
C13: 2021 YE Avg WP | D13: Auto | E13: =G30 -> 1898.300203 | F13: =G33 -> 1839.258397 | G13: =G36 -> 1872.449899 | H13: =G39 -> 1777.158453 | I13: =G42 -> 2276.72384
D14: Home | E14: =G28 -> 1498.263591 | F14: =G31 -> 1536.279041 | G14: =G34 -> 1380.884758 | H14: =G37 -> 1263.129959 | I14: =G40 -> 1727.829208
D15: Specialty | E15: =G29 -> 436.4555163 | F15: =G32 -> 282.7476775 | G15: =G35 -> 307.0894168 | H15: =G38 -> 370.9251915 | I15: =G41 -> 447.5978331
A26: Pulled from RPM 1-18-2022
A27: Prime Prd Loc St Cd | B27: Line of Business Nm | C27: Direct WP Amt - CYTD | D27: Direct WP Amt - PYTD | E27: RIF Cnt - CYTD-Hide | F27: RIF Cnt - PYTD | G27: CYTD Avg | H27: PYTD Avg
A28: AR | B28: Homeowners | C28: 22571341 | D28: 16097028.99 | E28: 15065 | F28: 10892 | G28: =C28/E28 -> 1498.263591 | H28: =D28/F28 -> 1477.87633
A29: AR | B29: Other Personal Lines | C29: 1889415.93 | D29: 1824126.49 | E29: 4329 | F29: 3894 | G29: =C29/E29 -> 436.4555163 | H29: =D29/F29 -> 468.4454263
A30: AR | B30: Standard Auto | C30: 22747331.33 | D30: 17319477.06 | E30: 11983 | F30: 9135 | G30: 1898.300203 | H30: 1895.947133
A31: KS | B31: Homeowners | C31: 124143636.7 | D31: 112339637.4 | E31: 80808 | F31: 75883 | G31: 1536.279041 | H31: 1480.43221
A32: KS | B32: Other Personal Lines | C32: 6316017.62 | D32: 6246657.98 | E32: 22338 | F32: 21198 | G32: 282.7476775 | H32: 294.6814784
A33: KS | B33: Standard Auto | C33: 105152241.8 | D33: 100539730.1 | E33: 57171 | F33: 53893 | G33: 1839.258397 | H33: 1865.543393
A34: MO | B34: Homeowners | C34: 103411697.7 | D34: 81271942.04 | E34: 74888 | F34: 59897 | G34: 1380.884758 | H34: 1356.861646
A35: MO | B35: Other Personal Lines | C35: 7861489.07 | D35: 7873550.36 | E35: 25600 | F35: 24721 | G35: 307.0894168 | H35: 318.4964346
A36: MO | B36: Standard Auto | C36: 103076494.5 | D36: 87792205.21 | E36: 55049 | F36: 44573 | G36: 1872.449899 | H36: 1969.62747
A37: OK | B37: Homeowners | C37: 39547335.88 | D37: 35484744.41 | E37: 31309 | F37: 29452 | G37: 1263.129959 | H37: 1204.833098
A38: OK | B38: Other Personal Lines | C38: 2295656.01 | D38: 2260243.61 | E38: 6189 | F38: 6021 | G38: 370.9251915 | H38: 375.3933915
A39: OK | B39: Standard Auto | C39: 60533571.24 | D39: 60913252.61 | E39: 34062 | F39: 33142 | G39: 1777.158453 | H39: 1837.947396
A40: TX | B40: Homeowners | C40: 473591074.5 | D40: 389176291 | E40: 274096 | F40: 234405 | G40: 1727.829208 | H40: 1660.272993
A41: TX | B41: Other Personal Lines | C41: 25077116.2 | D41: 24289755.58 | E41: 56026 | F41: 52234 | G41: 447.5978331 | H41: 465.0181028
A42: TX | B42: Standard Auto | C42: 498554709.8 | D42: 478263577 | E42: 218979 | F42: 203798 | G42: 2276.72384 | H42: 2346.753045
